fUSD/lending_fUSD_20250308
["ID","MTS","AMOUNT","RATE_DAILY","PERIOD"]
[355693109,1741465838297,-500.0,9.988e-05,2]
[355693110,1741465838307,-500.0,9.988e-05,2]
[355693111,1741465838316,-582.50312844,9.988e-05,2]
[355693112,1741465838328,-83.32687156,9.988e-05,2]
[355693113,1741465838338,-500.0,9.988e-05,2]
[355693114,1741465838347,-500.0,9.988e-05,2]
[355693115,1741465838357,-415.31697102,9.988e-05,2]
[355693116,1741465838366,-500.0,9.988e-05,2]
[355693117,1741465838375,-753.08,9.988e-05,2]
[355693118,1741465838385,-269.75961362,9.988e-05,2]
[355693119,1741465838406,-230.24038638,9.988e-05,2]
[355693120,1741465838415,-825.14994162,9.989e-05,2]
[355693121,1741465838429,-1119.92206623,9.989e-05,2]
[355693123,1741465839541,-500.0,9.988e-05,2]
[355693124,1741465839551,-625784.47868849,9.989e-05,2]
[355693125,1741465839561,-175.65951585,9.993e-05,2]
[355693126,1741465839571,-2189.013,9.993e-05,2]
[355693127,1741465839581,-162.25770135,9.993e-05,2]
[355693128,1741465839590,-500.0,9.999e-05,2]
[355693129,1741465839600,-500.0,9.999e-05,2]
[355693130,1741465839610,-500.0,9.999e-05,2]
[355693131,1741465839619,-500.0,9.999e-05,2]
[355693132,1741465839629,-615.70984039,9.999e-05,2]
[355693133,1741465839639,-415.3189186,9.999e-05,2]
[355693134,1741465839648,-500.0,9.999e-05,2]
[355693135,1741465839658,-500.0,9.999e-05,2]
[355693136,1741465839668,-571.60302035,9.999e-05,2]
[355693137,1741465839677,-1710.05,9.999e-05,2]
[355693138,1741465839686,-500.0,9.999e-05,2]
[355693139,1741465839696,-562.68807425,9.999e-05,2]
[355693140,1741465839705,-500.0,9.999e-05,2]
[355693141,1741465839715,-500.0,9.999e-05,2]
[355693142,1741465839725,-500.0,9.999e-05,2]
[355693143,1741465839735,-500.0,9.999e-05,2]
[355693144,1741465839744,-500.0,9.999e-05,2]
[355693145,1741465839754,-500.0,9.999e-05,2]
[355693146,1741465839764,-500.0,9.999e-05,2]
[355693147,1741465839773,-500.0,9.999e-05,2]
[355693148,1741465839783,-500.0,9.999e-05,2]
[355693149,1741465839792,-500.0,9.999e-05,2]
[355693150,1741465839801,-500.0,9.999e-05,2]
[355693151,1741465839811,-500.0,9.999e-05,2]
[355693152,1741465839820,-500.0,9.999e-05,2]
[355693153,1741465839830,-500.0,9.999e-05,2]
[355693154,1741465839839,-500.0,9.999e-05,2]
[355693155,1741465839851,-500.0,9.999e-05,2]
[355693156,1741465839862,-500.0,9.999e-05,2]
[355693157,1741465839872,-500.0,9.999e-05,2]
[355693158,1741465839881,-500.0,9.999e-05,2]
[355693159,1741465839892,-500.0,9.999e-05,2]
[355693160,1741465839902,-500.0,9.999e-05,2]
[355693161,1741465839911,-500.0,9.999e-05,2]
[355693162,1741465839920,-525.05,9.999e-05,2]
[355693163,1741465839930,-500.0,9.999e-05,2]
[355693164,1741465839939,-500.0,9.999e-05,2]
[355693165,1741465839949,-500.0,9.999e-05,2]
[355693166,1741465839958,-500.0,9.999e-05,2]
[355693167,1741465839968,-500.0,9.999e-05,2]
[355693168,1741465839979,-500.0,9.999e-05,2]
[355693169,1741465839988,-500.0,9.999e-05,2]
[355693170,1741465839999,-500.0,9.999e-05,2]
[355693171,1741465840008,-500.0,9.999e-05,2]
[355693172,1741465840018,-500.0,9.999e-05,2]
[355693173,1741465840027,-500.0,9.999e-05,2]
[355693174,1741465840036,-976.1,9.999e-05,2]
[355693175,1741465840045,-818.6,9.999e-05,2]
[355693176,1741465840054,-516.0,9.999e-05,2]
[355693177,1741465840063,-500.0,9.999e-05,2]
[355693178,1741465840073,-238.68693732,9.999e-05,2]
[355693179,1741465840083,-407.37168164,9.999e-05,2]
[355693180,1741465840093,-580.16,9.999e-05,2]
[355693181,1741465840104,-562.87,9.999e-05,2]
[355693182,1741465840113,-709.64,9.999e-05,2]
[355693183,1741465840123,-500.0,9.999e-05,2]
[355693184,1741465840132,-1046.77,9.999e-05,2]
[355693185,1741465840142,-500.0,9.999e-05,2]
[355693187,1741465840152,-1506.34,9.999e-05,2]
[355693188,1741465840161,-500.0,9.999e-05,2]
[355693189,1741465840171,-500.0,9.999e-05,2]
[355693190,1741465840180,-876.67,9.999e-05,2]
[355693191,1741465840193,-500.0,9.999e-05,2]
[355693192,1741465840202,-1837.36,9.999e-05,2]
[355693193,1741465840212,-500.0,9.999e-05,2]
[355693194,1741465840222,-500.0,9.999e-05,2]
[355693195,1741465840232,-729.1,9.999e-05,2]
[355693196,1741465840241,-957.97,9.999e-05,2]
[355693197,1741465840253,-500.0,9.999e-05,2]
[355693198,1741465840263,-313.1979952,9.999e-05,2]
[355693199,1741465840273,-549.96,9.999e-05,2]
[355693200,1741465840284,-349.09584673,9.999e-05,2]
[355693201,1741465840294,-500.0,9.999e-05,2]
[355693202,1741465840303,-1393.6,9.999e-05,2]
[355693203,1741465840312,-500.0,9.999e-05,2]
[355693204,1741465840322,-459.67086529,9.999e-05,2]
[355693205,1741465840332,-1623.81,9.999e-05,2]
[355693206,1741465840342,-231.80584861,9.999e-05,2]
[355693207,1741465840351,-538.57,9.999e-05,2]
[355693208,1741465840360,-500.0,9.999e-05,2]
[355693209,1741465840370,-500.0,9.999e-05,2]
[355693210,1741465840379,-500.0,9.999e-05,2]
[355693211,1741465840389,-594.48,9.999e-05,2]
[355693212,1741465840399,-585.5,9.999e-05,2]
[355693213,1741465840408,-766.78,9.999e-05,2]
[355693214,1741465840418,-2833.53,9.999e-05,2]
[355693215,1741465840429,-500.0,9.999e-05,2]
[355693216,1741465840440,-847.78,9.999e-05,2]
[355693217,1741465840451,-500.0,9.999e-05,2]
[355693218,1741465840461,-1839.6,9.999e-05,2]
[355693219,1741465840472,-1707.96,9.999e-05,2]
[355693220,1741465840482,-811.09,9.999e-05,2]
[355693221,1741465840492,-500.0,9.999e-05,2]
[355693222,1741465840501,-1716.46,9.999e-05,2]
[355693223,1741465840511,-500.0,9.999e-05,2]
[355693224,1741465840522,-500.0,9.999e-05,2]
[355693225,1741465840531,-171.8738856,9.999e-05,2]
[355693226,1741465840541,-500.0,9.999e-05,2]
[355693227,1741465840551,-579.27,9.999e-05,2]
[355693228,1741465840561,-748.77,9.999e-05,2]
[355693229,1741465840570,-1363.02,9.999e-05,2]
[355693230,1741465840580,-846.95,9.999e-05,2]
[355693231,1741465840590,-538.88,9.999e-05,2]
[355693232,1741465840599,-500.0,9.999e-05,2]
[355693233,1741465840609,-500.0,9.999e-05,2]
[355693234,1741465840619,-500.0,9.999e-05,2]
[355693235,1741465840628,-662.01,9.999e-05,2]
[355693236,1741465840638,-1024.68,9.999e-05,2]
[355693237,1741465840648,-1939.68,9.999e-05,2]
[355693238,1741465840658,-500.0,9.999e-05,2]
[355693239,1741465840667,-5890.27,9.999e-05,2]
[355693240,1741465840677,-642.07,9.999e-05,2]
[355693241,1741465840687,-500.0,9.999e-05,2]
[355693242,1741465840697,-1489.91,9.999e-05,2]
[355693243,1741465840706,-500.0,9.999e-05,2]
[355693244,1741465840715,-500.0,9.999e-05,2]
[355693245,1741465840725,-1072.1,9.999e-05,2]
[355693246,1741465840735,-713.11,9.999e-05,2]
[355693247,1741465840744,-500.0,9.999e-05,2]
[355693248,1741465840754,-500.0,9.999e-05,2]
[355693249,1741465840763,-500.0,9.999e-05,2]
[355693250,1741465840772,-553.37,9.999e-05,2]
[355693251,1741465840782,-1397.85,9.999e-05,2]
[355693252,1741465840791,-500.0,9.999e-05,2]
[355693253,1741465840801,-500.0,9.999e-05,2]
[355693254,1741465840810,-500.0,9.999e-05,2]
[355693255,1741465840819,-1009.39,9.999e-05,2]
[355693256,1741465840830,-500.0,9.999e-05,2]
[355693257,1741465840840,-1517.0,9.999e-05,2]
[355693258,1741465840850,-352.22933171,9.999e-05,2]
[355693259,1741465840860,-328574.40875824,0.0001,2]
[355693260,1741465840920,-1354.79673894,0.0001,2]
[355693285,1741465843088,-1000.0,9.889e-05,2]
[355693286,1741465843098,-500.0,9.988e-05,2]
[355693287,1741465843108,-3455.95916019,0.0001,2]
[355693288,1741465843119,-369.12270208,0.0001,2]
[355693351,1741465844747,-307.6011384,0.0001,2]
[355693352,1741465844759,-14009.0648112,0.0001,2]
[355693353,1741465844803,-500.0,9.988e-05,2]
[355693354,1741465844812,-1009.09021663,0.0001,2]
[355693355,1741465844824,-579.35206,0.0001,2]
[355693356,1741465844847,-865.7916685,0.0001,2]
[355693359,1741465845481,-7125.67240351,0.0001,2]
[355693360,1741465845756,-1790.3736,0.0001,2]
[355693400,1741465998429,500.0,0.00026586,120]
[355693401,1741465999272,500.0,0.00027999,120]
[355693402,1741466110994,153.0,0.00028,120]
[355693404,1741466600071,500.0,0.00027097,120]
[355693413,1741466816972,1076.19,0.00016493,30]
[355693414,1741466817376,1076.19,0.00020971,30]
[355693421,1741466845344,50000.0,0.00025,30]
[355693429,1741466935654,50000.0,0.00025,31]
[355693430,1741466939349,50000.0,0.00025,32]
[355693435,1741466942909,50000.0,0.00025,33]
[355693436,1741466946224,50000.0,0.00025,34]
[355693437,1741466949825,50000.0,0.00025,35]
[355693438,1741466953068,50000.0,0.00025,36]
[355693439,1741466956501,50000.0,0.00025,37]
[355693440,1741466959952,50000.0,0.00025,38]
[355693441,1741466963165,50000.0,0.00025,39]
[355693475,1741467037809,-1218.32,8.219e-05,2]
[355693476,1741467037819,-187.43,9.044e-05,2]
[355693477,1741467037831,-422.99,9.099e-05,2]
[355693478,1741467037840,-169.11,9.113e-05,2]
[355693479,1741467037850,-1000.0,9.154e-05,2]
[355693480,1741467037863,-150.0,9.562e-05,7]
[355693481,1741467037873,-285.0,9.644e-05,2]
[355693482,1741467037883,-123.08697637,9.66e-05,2]
[355693483,1741467037903,-46.02302363,9.66e-05,2]
[355693484,1741467037913,-5365.35979445,9.889e-05,2]
[355693485,1741467037935,-1062.4557274,9.889e-05,2]
[355693498,1741467039775,-29935.59567815,9.889e-05,2]
[355693499,1741467039785,-500.0,9.889e-05,2]
[355693500,1741467039795,-1000.0,9.889e-05,2]
[355693501,1741467039804,-2868.6185,9.889e-05,2]
[355693502,1741467039813,-23937.0202,9.889e-05,2]
[355693503,1741467039823,-152.52,9.89e-05,2]
[355693504,1741467039832,-989.55,9.89e-05,2]
[355693505,1741467039841,-1356.1948,9.899e-05,2]
[355693506,1741467039851,-2500.0,9.899e-05,2]
[355693507,1741467039865,-348.1107,9.9e-05,2]
[355693508,1741467039874,-201.35648914,9.973e-05,2]
[355693509,1741467039883,-163.60900795,9.973e-05,2]
[355693510,1741467039895,-151.28533781,9.973e-05,2]
[355693511,1741467039907,-356.22675643,9.973e-05,2]
[355693512,1741467039917,-182.28331995,9.973e-05,2]
[355693513,1741467039927,-160.10545875,9.973e-05,2]
[355693514,1741467039938,-151.28351883,9.973e-05,2]
[355693515,1741467039949,-151.10405644,9.973e-05,2]
[355693516,1741467039958,-200.35966598,9.973e-05,2]
[355693517,1741467039968,-160.3002664,9.973e-05,2]
[355693518,1741467039978,-1534.31997774,9.978e-05,2]
[355693519,1741467039987,-150.0,9.984e-05,2]
[355693520,1741467039997,-500.0,9.988e-05,2]
[355693521,1741467040007,-500.0,9.988e-05,2]
[355693522,1741467040017,-500.0,9.988e-05,2]
[355693523,1741467040026,-500.0,9.988e-05,2]
[355693524,1741467040035,-500.0,9.988e-05,2]
[355693525,1741467040045,-500.0,9.988e-05,2]
[355693526,1741467040055,-500.0,9.988e-05,2]
[355693527,1741467040065,-500.0,9.988e-05,2]
[355693528,1741467040074,-500.0,9.988e-05,2]
[355693529,1741467040084,-500.0,9.988e-05,2]
[355693530,1741467040094,-500.0,9.988e-05,2]
[355693531,1741467040103,-500.0,9.988e-05,2]
[355693532,1741467040112,-500.0,9.988e-05,2]
[355693533,1741467040121,-500.0,9.988e-05,2]
[355693534,1741467040131,-500.0,9.988e-05,2]
[355693535,1741467040140,-175.65951585,9.997e-05,2]
[355693536,1741467040150,-2189.013,9.997e-05,2]
[355693537,1741467040160,-1000.0,9.998e-05,2]
[355693538,1741467040169,-1000.0,9.998e-05,2]
[355693539,1741467040179,-1009.0,9.998e-05,2]
[355693540,1741467040189,-1000.0,9.998e-05,2]
[355693541,1741467040199,-1000.0,9.998e-05,2]
[355693542,1741467040208,-1000.0,9.998e-05,2]
[355693543,1741467040218,-1000.0,9.998e-05,2]
[355693544,1741467040227,-1000.0,9.998e-05,2]
[355693545,1741467040237,-1000.0,9.998e-05,2]
[355693546,1741467040246,-1000.0,9.998e-05,3]
[355693547,1741467040255,-1000.0,9.998e-05,3]
[355693548,1741467040265,-1000.0,9.998e-05,3]
[355693549,1741467040274,-1000.0,9.998e-05,2]
[355693562,1741467040573,-1000.0,9.998e-05,2]
[355693563,1741467040583,-1001.0,9.998e-05,2]
[355693564,1741467040592,-1000.0,9.998e-05,2]
[355693565,1741467040601,-1000.0,9.998e-05,2]
[355693566,1741467040610,-1001.0,9.998e-05,2]
[355693567,1741467040619,-306.30698101,9.998e-05,2]
[355693568,1741467040629,-201.04695974,9.998e-05,2]
[355693569,1741467040638,-500.0,9.998e-05,2]
[355693570,1741467040647,-500.0,9.998e-05,2]
[355693571,1741467040656,-352.02508381,9.998e-05,2]
[355693572,1741467040666,-500.0,9.999e-05,2]
[355693573,1741467040675,-500.0,9.999e-05,2]
[355693574,1741467040685,-615.70984039,9.999e-05,2]
[355693575,1741467040694,-415.3189186,9.999e-05,2]
[355693576,1741467040704,-562.68807425,9.999e-05,2]
[355693577,1741467040713,-571.60302035,9.999e-05,2]
[355693578,1741467040722,-1742.36,9.999e-05,2]
[355693579,1741467040731,-500.0,9.999e-05,2]
[355693580,1741467040741,-500.0,9.999e-05,2]
[355693581,1741467040750,-500.0,9.999e-05,2]
[355693582,1741467040759,-500.0,9.999e-05,2]
[355693583,1741467040769,-500.0,9.999e-05,2]
[355693584,1741467040778,-500.0,9.999e-05,2]
[355693585,1741467040787,-500.0,9.999e-05,2]
[355693586,1741467040797,-500.0,9.999e-05,2]
[355693587,1741467040806,-500.0,9.999e-05,2]
[355693588,1741467040816,-500.0,9.999e-05,2]
[355693589,1741467040825,-500.0,9.999e-05,2]
[355693590,1741467040835,-500.0,9.999e-05,2]
[355693591,1741467040844,-500.0,9.999e-05,2]
[355693592,1741467040854,-500.0,9.999e-05,2]
[355693593,1741467040867,-500.0,9.999e-05,2]
[355693594,1741467040877,-500.0,9.999e-05,2]
[355693595,1741467040887,-525.05,9.999e-05,2]
[355693596,1741467040896,-500.0,9.999e-05,2]
[355693597,1741467040907,-500.0,9.999e-05,2]
[355693598,1741467040916,-500.0,9.999e-05,2]
[355693599,1741467040926,-500.0,9.999e-05,2]
[355693600,1741467040938,-500.0,9.999e-05,2]
[355693601,1741467040948,-500.0,9.999e-05,2]
[355693602,1741467040958,-500.0,9.999e-05,2]
[355693603,1741467040968,-1506.34,9.999e-05,2]
[355693604,1741467040979,-500.0,9.999e-05,2]
[355693605,1741467040988,-500.0,9.999e-05,2]
[355693606,1741467040998,-691.4,9.999e-05,2]
[355693607,1741467041007,-500.0,9.999e-05,2]
[355693608,1741467041017,-500.0,9.999e-05,2]
[355693609,1741467041027,-500.0,9.999e-05,2]
[355693610,1741467041036,-349.09584673,9.999e-05,2]
[355693611,1741467041046,-153.18725526,9.999e-05,2]
[355693612,1741467041055,-238.68693732,9.999e-05,2]
[355693613,1741467041065,-1837.36,9.999e-05,2]
[355693614,1741467041074,-562.87,9.999e-05,2]
[355693615,1741467041084,-500.0,9.999e-05,2]
[355693616,1741467041094,-500.0,9.999e-05,2]
[355693617,1741467041103,-957.97,9.999e-05,2]
[355693618,1741467041113,-500.0,9.999e-05,2]
[355693619,1741467041124,-500.0,9.999e-05,2]
[355693620,1741467041133,-500.0,9.999e-05,2]
[355693621,1741467041144,-876.67,9.999e-05,2]
[355693622,1741467041153,-500.0,9.999e-05,2]
[355693623,1741467041162,-594.48,9.999e-05,2]
[355693624,1741467041172,-500.0,9.999e-05,2]
[355693625,1741467041181,-407.37168164,9.999e-05,2]
[355693626,1741467041190,-766.78,9.999e-05,2]
[355693627,1741467041200,-500.0,9.999e-05,2]
[355693628,1741467041209,-729.1,9.999e-05,2]
[355693629,1741467041218,-847.78,9.999e-05,2]
[355693630,1741467041228,-500.0,9.999e-05,2]
[355693631,1741467041239,-549.96,9.999e-05,2]
[355693632,1741467041248,-313.1979952,9.999e-05,2]
[355693633,1741467041259,-500.0,9.999e-05,2]
[355693634,1741467041268,-1707.96,9.999e-05,2]
[355693635,1741467041278,-1623.81,9.999e-05,2]
[355693636,1741467041288,-1716.46,9.999e-05,2]
[355693637,1741467041298,-680.31,9.999e-05,2]
[355693638,1741467041307,-585.5,9.999e-05,2]
[355693639,1741467041316,-459.67086529,9.999e-05,2]
[355693640,1741467041326,-8217.4,9.999e-05,2]
[355693641,1741467041335,-748.77,9.999e-05,2]
[355693642,1741467041346,-2833.53,9.999e-05,2]
[355693643,1741467041355,-500.0,9.999e-05,2]
[355693644,1741467041365,-500.0,9.999e-05,2]
[355693645,1741467041375,-703.0,9.999e-05,2]
[355693646,1741467041386,-500.0,9.999e-05,2]
[355693647,1741467041397,-1839.6,9.999e-05,2]
[355693648,1741467041407,-538.88,9.999e-05,2]
[355693649,1741467041415,-231.80584861,9.999e-05,2]
[355693650,1741467041424,-500.0,9.999e-05,2]
[355693651,1741467041434,-500.0,9.999e-05,2]
[355693652,1741467041443,-500.0,9.999e-05,2]
[355693653,1741467041453,-811.09,9.999e-05,2]
[355693654,1741467041463,-500.0,9.999e-05,2]
[355693655,1741467041474,-1024.68,9.999e-05,2]
[355693656,1741467041483,-547.08,9.999e-05,2]
[355693657,1741467041492,-594.26,9.999e-05,2]
[355693658,1741467041502,-5890.27,9.999e-05,2]
[355693659,1741467041511,-171.8738856,9.999e-05,2]
[355693660,1741467041520,-579.27,9.999e-05,2]
[355693661,1741467041530,-500.0,9.999e-05,2]
[355693662,1741467041539,-500.0,9.999e-05,2]
[355693663,1741467041549,-500.0,9.999e-05,2]
[355693664,1741467041558,-688.43,9.999e-05,2]
[355693665,1741467041568,-642.07,9.999e-05,2]
[355693666,1741467041577,-1363.02,9.999e-05,2]
[355693667,1741467041586,-733.07,9.999e-05,2]
[355693668,1741467041595,-846.95,9.999e-05,2]
[355693669,1741467041604,-500.0,9.999e-05,2]
[355693670,1741467041614,-500.0,9.999e-05,2]
[355693671,1741467041623,-500.0,9.999e-05,2]
[355693672,1741467041632,-162.25770135,9.999e-05,2]
[355693673,1741467041641,-500.0,9.999e-05,2]
[355693674,1741467041651,-662.01,9.999e-05,2]
[355693675,1741467041660,-856.18,9.999e-05,2]
[355693676,1741467041669,-500.0,9.999e-05,2]
[355693677,1741467041679,-500.0,9.999e-05,2]
[355693678,1741467041688,-1072.1,9.999e-05,2]
[355693679,1741467041697,-878.59,9.999e-05,2]
[355693680,1741467041706,-500.0,9.999e-05,2]
[355693681,1741467041715,-500.0,9.999e-05,2]
[355693682,1741467041725,-500.0,9.999e-05,2]
[355693683,1741467041734,-237.33133262,9.999e-05,2]
[355693684,1741467041743,-3466.57,9.999e-05,2]
[355693685,1741467041753,-1397.85,9.999e-05,2]
[355693686,1741467041762,-500.0,9.999e-05,2]
[355693687,1741467041772,-500.0,9.999e-05,2]
[355693688,1741467041782,-1179.51,9.999e-05,2]
[355693689,1741467041791,-500.0,9.999e-05,2]
[355693690,1741467041801,-500.0,9.999e-05,2]
[355693691,1741467041811,-1009.39,9.999e-05,2]
[355693692,1741467041820,-500.0,9.999e-05,2]
[355693693,1741467041830,-500.0,9.999e-05,2]
[355693694,1741467041839,-713.11,9.999e-05,2]
[355693695,1741467041848,-500.0,9.999e-05,2]
[355693696,1741467041858,-500.0,9.999e-05,2]
[355693697,1741467041870,-500.0,9.999e-05,2]
[355693698,1741467041879,-1242.15,9.999e-05,2]
[355693699,1741467041889,-818.6,9.999e-05,2]
[355693700,1741467041898,-553.37,9.999e-05,2]
[355693701,1741467041912,-500.0,9.999e-05,2]
[355693702,1741467041922,-500.0,9.999e-05,2]
[355693703,1741467041934,-500.0,9.999e-05,2]
[355693704,1741467041946,-638.09,9.999e-05,2]
[355693705,1741467041956,-500.0,9.999e-05,2]
[355693706,1741467041965,-721.7,9.999e-05,2]
[355693707,1741467041975,-500.0,9.999e-05,2]
[355693708,1741467041983,-500.0,9.999e-05,2]
[355693709,1741467041992,-580.16,9.999e-05,2]
[355693710,1741467042001,-500.0,9.999e-05,2]
[355693711,1741467042011,-500.0,9.999e-05,2]
[355693712,1741467042020,-500.0,9.999e-05,2]
[355693713,1741467042031,-500.0,9.999e-05,2]
[355693714,1741467042040,-1046.77,9.999e-05,2]
[355693715,1741467042049,-500.0,9.999e-05,2]
[355693716,1741467042059,-185.66962229,9.999e-05,2]
[355693717,1741467042069,-709.64,9.999e-05,2]
[355693718,1741467042079,-500.0,9.999e-05,2]
[355693719,1741467042088,-500.0,9.999e-05,2]
[355693720,1741467042097,-352.22933171,9.999e-05,2]
[355693721,1741467042107,-1523.0,9.999e-05,2]
[355693722,1741467042116,-1104988.90016197,0.0001,2]
[355693723,1741467042126,-1239894.65783282,0.0001,2]
[355693724,1741467042135,-1036654.31093548,0.0001,2]
[355693725,1741467042177,-423940.72122113,0.0001,2]
[355693737,1741467042844,-500.0,9.999e-05,2]
[355693738,1741467042855,-239.94,0.0001,2]
[355693741,1741467044558,-2723.74308503,0.0001,2]
[355693743,1741467045709,-479.78325027,9.999e-05,2]
[355693744,1741467045721,-20.21674973,9.999e-05,2]
[355693745,1741467045732,-1277.86231919,9.999e-05,2]
[355693750,1741467118937,50000.0,0.00025,30]
[355693751,1741467124119,50000.0,0.00025,31]
[355693752,1741467127573,50000.0,0.00025,32]
[355693753,1741467131350,50000.0,0.00025,33]
[355693754,1741467135187,50000.0,0.00025,34]
[355693755,1741467138537,50000.0,0.00025,35]
[355693756,1741467141945,50000.0,0.00025,36]
[355693757,1741467145692,50000.0,0.00025,37]
[355693758,1741467149105,50000.0,0.00025,38]
[355693759,1741467152606,50000.0,0.00025,39]
[355693760,1741467198759,500.0,0.00025184,120]
[355693761,1741467199122,500.0,0.00027448,120]
[355693764,1741467797421,500.0,0.00025848,120]
[355693765,1741467797828,500.0,0.00027999,120]
[355693766,1741467801494,1000.0,0.00025,30]
[355693767,1741467811122,1000.0,0.00025,35]
[355693768,1741467905198,50000.0,0.00025,30]
[355693770,1741467909948,50000.0,0.00025,31]
[355693771,1741467913836,50000.0,0.00025,32]
[355693772,1741467917779,50000.0,0.00025,33]
[355693773,1741467921258,50000.0,0.00025,34]
[355693774,1741467924892,50000.0,0.00025,35]
[355693775,1741467928411,50000.0,0.00025,36]
[355693776,1741467931847,50000.0,0.00025,37]
[355693777,1741467935940,50000.0,0.00025,38]
[355693782,1741467939556,50000.0,0.00025,39]
[355693811,1741468232267,-1191.05,8.219e-05,2]
[355693812,1741468232277,-689.494,8.596e-05,2]
[355693813,1741468232289,-310.506,8.596e-05,2]
[355693814,1741468232299,-170.98,8.642e-05,2]
[355693815,1741468232310,-150.0,9.041e-05,2]
[355693816,1741468232319,-150.0,9.041e-05,2]
[355693817,1741468232329,-150.0,9.041e-05,2]
[355693818,1741468232338,-523.66570862,9.041e-05,2]
[355693819,1741468232350,-26.33429138,9.041e-05,2]
[355693820,1741468232359,-216.59,9.113e-05,2]
[355693821,1741468232369,-216.59,9.142e-05,2]
[355693822,1741468232378,-216.59,9.17e-05,2]
[355693823,1741468232387,-216.59,9.199e-05,2]
[355693824,1741468232397,-309.44,9.22e-05,2]
[355693825,1741468232406,-216.59,9.228e-05,2]
[355693826,1741468232415,-216.59,9.257e-05,2]
[355693827,1741468232426,-216.59,9.286e-05,2]
[355693828,1741468232437,-216.59,9.314e-05,2]
[355693829,1741468232447,-216.59,9.343e-05,2]
[355693830,1741468232457,-216.59,9.372e-05,2]
[355693832,1741468232467,-216.59,9.401e-05,2]
[355693834,1741468232480,-216.59,9.429e-05,2]
[355693836,1741468232489,-216.59,9.458e-05,2]
[355693838,1741468232498,-216.59,9.487e-05,2]
[355693840,1741468232507,-216.59,9.516e-05,2]
[355693842,1741468232518,-525.649338,9.525e-05,2]
[355693844,1741468232527,-216.59,9.544e-05,2]
[355693846,1741468232537,-216.59,9.573e-05,2]
[355693847,1741468232546,-216.59,9.602e-05,2]
[355693848,1741468232558,-216.59,9.631e-05,2]
[355693849,1741468232568,-300.0,9.631e-05,2]
[355693850,1741468232577,-216.59,9.659e-05,2]
[355693851,1741468232587,-1000.0,9.67e-05,2]
[355693852,1741468232596,-158.2133,9.8e-05,2]
[355693853,1741468232606,-1394.4628,9.8e-05,2]
[355693855,1741468232615,-1206.0,9.8e-05,2]
[355693856,1741468232625,-3068.3707,9.899e-05,2]
[355693857,1741468232635,-808.0151,9.899e-05,2]
[355693858,1741468232645,-3015.24337067,9.899e-05,2]
[355693859,1741468232665,-16620.84864442,9.899e-05,2]
[355693860,1741468232684,-468.53761822,9.899e-05,2]
[355693862,1741468237925,-7053.23970044,9.899e-05,2]
[355693863,1741468238038,-393.69097478,9.899e-05,2]
[355693864,1741468238051,-502.36352681,9.899e-05,2]
[355693865,1741468238063,-787.71836466,9.899e-05,2]
[355693866,1741468238073,-1548.5703,9.899e-05,2]
[355693867,1741468238083,-2356.2935,9.899e-05,2]
[355693868,1741468238091,-1360.57167892,9.899e-05,2]
[355693869,1741468238104,-4801.92242108,9.899e-05,2]
[355693870,1741468238114,-1238.2,9.9e-05,2]
[355693871,1741468238123,-3113.03442712,9.9e-05,2]
[355693872,1741468238138,-2099.864192,9.9e-05,2]
[355693873,1741468238150,-308.04390131,9.9e-05,2]
[355694032,1741468239923,-159.25,9.071e-05,2]
[355694033,1741468239933,-143.09800469,9.18e-05,2]
[355694036,1741468239946,-16.15199531,9.18e-05,2]
[355694037,1741468239955,-159.25,9.288e-05,2]
[355694039,1741468239964,-159.25,9.397e-05,2]
[355694041,1741468239973,-112.64800469,9.9e-05,2]
[355694044,1741468239998,-159.25,9.506e-05,2]
[355694046,1741468240008,-70091.39447488,9.9e-05,2]
[355694047,1741468240017,-15165.3826,9.9e-05,2]
[355694048,1741468240027,-29413.577,9.9e-05,2]